fUST/lending_fUST_20240725
["ID","MTS","AMOUNT","RATE_DAILY","PERIOD"]
[333086895,1721854242317,-4823.77,0.00013971,2]
[333086896,1721854242326,-4823.77,0.00013971,2]
[333086897,1721854242335,-4823.77,0.00013971,2]
[333086898,1721854242345,-4823.77,0.00013971,2]
[333086899,1721854242354,-4823.9755338,0.00013971,2]
[333086900,1721854242363,-22067.76626545,0.00013972,5]
[333086901,1721854242373,-151.0,0.00013972,2]
[333086902,1721854242382,-500.0,0.00013972,2]
[333086903,1721854242391,-615.84691662,0.00013972,2]
[333086904,1721854242400,-500.0,0.00013972,2]
[333086905,1721854242409,-500.0,0.00013972,2]
[333086906,1721854242418,-245.497927,0.00013972,2]
[333086907,1721854242427,-501.48343815,0.00013972,2]
[333086908,1721854242437,-500.0,0.00013972,2]
[333086909,1721854242446,-623.08,0.00013972,2]
[333086910,1721854242456,-151.0,0.00013972,2]
[333086911,1721854242465,-500.0,0.00013972,2]
[333086912,1721854242474,-1082.85,0.00013972,2]
[333086913,1721854242484,-1311.65,0.00013972,2]
[333086914,1721854242493,-500.0,0.00013972,2]
[333086915,1721854242503,-500.0,0.00013972,2]
[333086916,1721854242512,-500.0,0.00013972,2]
[333086917,1721854242522,-500.0,0.00013972,2]
[333086918,1721854242531,-496.65481811,0.00013972,2]
[333086919,1721854242541,-500.0,0.00013972,2]
[333086920,1721854242550,-500.0,0.00013972,2]
[333086921,1721854242559,-2073.63,0.00013972,2]
[333086922,1721854242569,-500.0,0.00013972,2]
[333086923,1721854242578,-500.0,0.00013972,2]
[333086924,1721854242587,-500.0,0.00013972,2]
[333086925,1721854242597,-500.0,0.00013972,2]
[333086926,1721854242610,-500.0,0.00013972,2]
[333086927,1721854242621,-500.0,0.00013972,2]
[333086928,1721854242633,-2973.38,0.00013972,2]
[333086929,1721854242644,-500.0,0.00013972,2]
[333086930,1721854242655,-508.97254975,0.00013972,2]
[333086931,1721854242665,-1466.0,0.00013972,2]
[333086932,1721854242675,-500.0,0.00013972,2]
[333086933,1721854242687,-500.0,0.00013972,2]
[333086934,1721854242700,-524.74,0.00013972,2]
[333086935,1721854242711,-500.0,0.00013972,2]
[333086936,1721854242721,-500.0,0.00013972,2]
[333086937,1721854242730,-1753.67,0.00013972,2]
[333086938,1721854242739,-500.0,0.00013972,2]
[333086939,1721854242748,-1109.87,0.00013972,2]
[333086940,1721854242758,-600.09,0.00013972,2]
[333086941,1721854242768,-500.0,0.00013972,2]
[333086942,1721854242778,-500.0,0.00013972,2]
[333086943,1721854242788,-500.0,0.00013972,2]
[333086944,1721854242797,-246.08483113,0.00013972,2]
[333086945,1721854242807,-500.0,0.00013972,2]
[333086946,1721854242817,-500.0,0.00013972,2]
[333086947,1721854242826,-500.0,0.00013972,2]
[333086948,1721854242836,-619.99,0.00013972,2]
[333086949,1721854242847,-1085.68,0.00013972,2]
[333086950,1721854242858,-500.0,0.00013972,2]
[333086951,1721854242868,-1049.61,0.00013972,2]
[333086952,1721854242878,-1324.47,0.00013972,2]
[333086953,1721854242889,-500.0,0.00013972,2]
[333086954,1721854242898,-500.0,0.00013972,2]
[333086955,1721854242908,-500.0,0.00013972,2]
[333086956,1721854242919,-1479.66,0.00013972,2]
[333086957,1721854242929,-500.0,0.00013972,2]
[333086958,1721854242939,-1545.31,0.00013972,2]
[333086959,1721854242951,-500.0,0.00013972,2]
[333086960,1721854242960,-689.17,0.00013972,2]
[333086961,1721854242971,-500.0,0.00013972,2]
[333086962,1721854242981,-500.0,0.00013972,2]
[333086963,1721854242990,-500.0,0.00013972,2]
[333086964,1721854243002,-502.2,0.00013972,2]
[333086965,1721854243011,-500.0,0.00013972,2]
[333086966,1721854243021,-500.0,0.00013972,2]
[333086967,1721854243031,-151.0,0.00013972,2]
[333086968,1721854243041,-500.0,0.00013972,2]
[333086969,1721854243050,-723.15,0.00013972,2]
[333086970,1721854243060,-1211.29,0.00013972,2]
[333086971,1721854243072,-500.0,0.00013972,2]
[333086972,1721854243082,-500.0,0.00013972,2]
[333086973,1721854243092,-500.0,0.00013972,2]
[333086974,1721854243102,-500.0,0.00013972,2]
[333086975,1721854243111,-582.6,0.00013972,2]
[333086976,1721854243122,-500.0,0.00013972,2]
[333086977,1721854243132,-719.44,0.00013972,2]
[333086978,1721854243142,-1571.35,0.00013972,2]
[333086979,1721854243152,-224.580718,0.00013972,2]
[333086980,1721854243163,-500.0,0.00013972,2]
[333086981,1721854243174,-500.0,0.00013972,2]
[333086982,1721854243185,-224.580718,0.00013972,2]
[333086983,1721854243195,-500.0,0.00013972,2]
[333086984,1721854243206,-508.50887773,0.00013972,2]
[333086985,1721854243216,-503.9,0.00013972,2]
[333086986,1721854243226,-500.0,0.00013972,2]
[333086987,1721854243237,-1058.85,0.00013972,2]
[333086988,1721854243247,-500.0,0.00013972,2]
[333086989,1721854243257,-500.0,0.00013972,2]
[333086990,1721854243267,-500.0,0.00013972,2]
[333086991,1721854243278,-536.79,0.00013972,2]
[333086992,1721854243289,-1323.8,0.00013972,2]
[333086994,1721854243299,-1604.19,0.00013972,2]
[333086995,1721854243310,-500.0,0.00013972,2]
[333086996,1721854243320,-500.0,0.00013972,2]
[333086997,1721854243330,-500.0,0.00013972,2]
[333086998,1721854243341,-2018.89,0.00013972,2]
[333086999,1721854243351,-151.0,0.00013972,2]
[333087000,1721854243365,-599.13,0.00013972,2]
[333087001,1721854243375,-500.0,0.00013972,2]
[333087002,1721854243387,-949.19,0.00013972,2]
[333087003,1721854243397,-500.0,0.00013972,2]
[333087004,1721854243406,-500.0,0.00013972,2]
[333087005,1721854243416,-516.4,0.00013972,2]
[333087006,1721854243425,-646.43,0.00013972,2]
[333087007,1721854243435,-500.0,0.00013972,2]
[333087008,1721854243444,-500.0,0.00013972,2]
[333087009,1721854243453,-151.0,0.00013972,2]
[333087010,1721854243462,-151.0,0.00013972,2]
[333087011,1721854243472,-500.0,0.00013972,2]
[333087012,1721854243481,-151.0,0.00013972,2]
[333087013,1721854243491,-1776.87,0.00013972,2]
[333087014,1721854243501,-1582.59,0.00013972,2]
[333087015,1721854243510,-500.0,0.00013972,2]
[333087016,1721854243519,-991.27,0.00013972,2]
[333087017,1721854243528,-1119.63,0.00013972,2]
[333087018,1721854243537,-500.0,0.00013972,2]
[333087020,1721854243547,-500.0,0.00013972,2]
[333087022,1721854243556,-500.0,0.00013972,2]
[333087024,1721854243565,-676.18,0.00013972,2]
[333087026,1721854243575,-500.0,0.00013972,2]
[333087028,1721854243584,-1364.13,0.00013972,2]
[333087029,1721854243594,-500.0,0.00013972,2]
[333087031,1721854243609,-500.0,0.00013972,2]
[333087032,1721854243619,-1291.18,0.00013972,2]
[333087034,1721854243628,-4271.48,0.00013972,2]
[333087036,1721854243638,-500.0,0.00013972,2]
[333087038,1721854243650,-500.0,0.00013972,2]
[333087040,1721854243660,-1642.68,0.00013972,2]
[333087041,1721854243670,-9314.66,0.00013972,2]
[333087043,1721854243685,-500.0,0.00013972,2]
[333087045,1721854243696,-151.0,0.00013972,2]
[333087047,1721854243706,-2108.5,0.00013972,2]
[333087048,1721854243716,-500.0,0.00013972,2]
[333087049,1721854243728,-177.420732,0.00013972,2]
[333087050,1721854243739,-500.0,0.00013972,2]
[333087051,1721854243750,-518.7,0.00013972,2]
[333087052,1721854243760,-650.19,0.00013972,2]
[333087053,1721854243771,-869.06,0.00013972,2]
[333087054,1721854243781,-500.0,0.00013972,2]
[333087055,1721854243791,-151.0,0.00013972,2]
[333087056,1721854243802,-908.09,0.00013972,2]
[333087057,1721854243811,-500.0,0.00013972,2]
[333087058,1721854243821,-500.0,0.00013972,2]
[333087059,1721854243831,-751.27,0.00013972,2]
[333087060,1721854243841,-826.56939754,0.00013972,2]
[333087061,1721854243981,-1437.39280895,0.00013698,2]
[333087062,1721854244027,273.37336231,9.9e-05,2]
[333087081,1721854246708,-1608.67719105,0.00013698,2]
[333087082,1721854246717,-500.0,0.00013698,2]
[333087083,1721854246727,-500.0,0.00013698,2]
[333087084,1721854246737,-935.92060246,0.00013972,2]
[333087085,1721854246746,-538.16,0.00013972,2]
[333087086,1721854246756,-500.0,0.00013972,2]
[333087087,1721854246766,-500.0,0.00013972,2]
[333087088,1721854246776,-1491.07,0.00013972,2]
[333087089,1721854246786,-500.0,0.00013972,2]
[333087090,1721854246795,-151.0,0.00013972,2]
[333087091,1721854246806,-2480.1,0.00013972,2]
[333087092,1721854246817,-500.0,0.00013972,2]
[333087094,1721854246827,-500.0,0.00013972,2]
[333087096,1721854246838,-743.35,0.00013972,2]
[333087098,1721854246848,-2339.31,0.00013972,2]
[333087100,1721854246858,-593.96,0.00013972,2]
[333087102,1721854246869,-500.0,0.00013972,2]
[333087104,1721854246879,-12723.08,0.00013972,2]
[333087106,1721854246888,-4304.64,0.00013972,2]
[333087108,1721854246899,-500.0,0.00013972,2]
[333087109,1721854246909,-3869.93,0.00013972,2]
[333087110,1721854246921,-6174.29,0.00013972,2]
[333087111,1721854246933,-500.0,0.00013972,2]
[333087112,1721854246943,-2443.08,0.00013972,2]
[333087113,1721854246953,-1472.45,0.00013972,2]
[333087114,1721854246963,-2504.01,0.00013972,2]
[333087115,1721854246973,-848.99,0.00013972,2]
[333087116,1721854246983,-2922.22,0.00013972,2]
[333087117,1721854246993,-151.959013,0.00013972,2]
[333087118,1721854247003,-4065.48,0.00013972,2]
[333087119,1721854247013,-500.0,0.00013972,2]
[333087120,1721854247023,-500.0,0.00013972,2]
[333087121,1721854247032,-500.0,0.00013972,2]
[333087122,1721854247042,-9.51525539,0.00013972,2]
[333087126,1721854249527,273.37336231,9.9e-05,2]
[333087127,1721854250116,221.16654667,0.00012,2]
[333087151,1721855138172,-300.0,9.356e-05,2]
[333087152,1721855138198,-193.83018783,9.36e-05,2]
[333087153,1721855153553,-1000.0,0.00014,14]
[333087154,1721855166204,-1000.0,0.00015,15]
[333087155,1721855177544,-1000.0,0.00016,16]
[333087156,1721855183966,-1000.0,0.00017,17]
[333087157,1721855219123,-150.65349696,0.00018752,30]
[333087158,1721855228104,-206.16981217,9.266e-05,2]
[333087159,1721855228129,-200.0,9.27e-05,2]
[333087160,1721855228153,-200.0,9.27e-05,2]
[333087161,1721855228180,-159.712672,9.375e-05,2]
[333087162,1721855228207,-93.97019283,9.445e-05,2]
[333087163,1721855228240,-65.74247917,9.445e-05,2]
[333087164,1721855228264,-300.0,9.45e-05,2]
[333087165,1721855228287,-699.55146726,9.451e-05,2]
[333087166,1721855231127,-4472.56565144,9.451e-05,2]
[333087167,1721855247372,-1000.0,0.0002,30]
[333087168,1721855248162,-1375.41000298,9.356e-05,2]
[333087169,1721855248185,-19717.8828813,9.451e-05,2]
[333087170,1721855248208,-159.712672,9.515e-05,2]
[333087171,1721855248230,-159.712672,9.584e-05,2]
[333087172,1721855248254,-159.712672,9.654e-05,2]
[333087173,1721855248276,-159.712672,9.724e-05,2]
[333087174,1721855248298,-159.712672,9.794e-05,2]
[333087175,1721855248322,-159.712672,9.863e-05,2]
[333087176,1721855248346,-155.0383145,9.999e-05,2]
[333087177,1721855248369,-383.71620685,9.999e-05,2]
[333087178,1721855249087,-203.82078401,9.999e-05,2]
[333087179,1721855259445,-1000.0,0.0002,30]
[333087180,1721855266164,-850.0,0.0002,30]
[333087183,1721855299962,-2000.0,0.0002,30]
[333087184,1721855301891,-2000.0,0.0002,30]
[333087185,1721855351102,-200.0,9.266e-05,2]
[333087186,1721855351126,-200.0,9.27e-05,2]
[333087187,1721855351148,-139.17833364,9.999e-05,2]
[333087188,1721855351171,-341.66678597,9.999e-05,2]
[333087189,1721855351197,-155.88216651,9.999e-05,2]
[333087190,1721855351221,-400.0,0.0001064,2]
[333087191,1721855351248,-300.0,0.00011999,2]
[333087192,1721855351273,-2161.70570008,0.00012,2]
[333087193,1721855354101,-37500.77274194,0.00012,2]
[333087194,1721855364445,-2000.0,0.00025,60]
[333087195,1721855367924,-2000.0,0.00025,60]
[333087196,1721855368130,-170.51212001,9.9e-05,2]
[333087197,1721855368277,-102.8612423,9.9e-05,2]
[333087198,1721855368298,-19203.37913627,0.00012,2]
[333087199,1721855373683,273.37336231,9.9e-05,2]
[333087200,1721855382246,273.37336231,9.9e-05,2]
[333087201,1721855390386,273.37336231,9.9e-05,2]
[333087202,1721855393904,200.0,0.0001,2]
[333087203,1721855393957,400.0,0.0001137,2]
[333087204,1721855398300,3782.30442803,0.00012,2]
[333087205,1721855398382,273.37336231,9.9e-05,2]
[333087206,1721855405064,-1008.0,0.00025,60]
[333087207,1721855406208,273.37336231,9.9e-05,2]
[333087208,1721855412677,3869.83854799,0.00012,2]
[333087209,1721855414198,273.37336231,9.9e-05,2]
[333087210,1721855422201,206.16981217,0.0001,2]
[333087211,1721855422876,273.37336231,9.9e-05,2]
[333087212,1721855427944,-1904.0,0.00025,60]
[333087213,1721855430711,273.37336231,9.9e-05,2]
[333087233,1721855431806,-600.0,0.00013147,2]
[333087234,1721855431819,-209.46405835,0.00013325,2]
[333087235,1721855431958,-898.33153993,0.00013325,2]
[333087236,1721855431971,-200.0,0.00013425,2]
[333087237,1721855431982,-604.11186318,0.00013598,2]
[333087238,1721855431996,-846.67657241,0.00013598,2]
[333087239,1721855432008,-1268.96629589,0.00013598,2]
[333087240,1721855432020,-301.07878286,0.00013598,2]
[333087241,1721855432031,-150.112233,0.000136,2]
[333087242,1721855432044,-83939.90695656,0.00013688,2]
[333087243,1721855434458,1974.73990773,0.00012,2]
[333087287,1721855437789,-1109.081745,0.00013688,2]
[333087289,1721855437804,-8743.88623674,0.00013688,2]
[333087290,1721855437813,-500.0,0.00013698,2]
[333087291,1721855437823,-500.0,0.00013698,2]
[333087293,1721855437832,-500.0,0.00013698,2]
[333087295,1721855437841,-500.0,0.00013698,2]
[333087296,1721855437852,-500.0,0.00013698,2]
[333087298,1721855437864,-500.0,0.00013698,2]
[333087300,1721855437874,-500.0,0.00013698,2]
[333087301,1721855437884,-500.0,0.00013698,2]
[333087303,1721855437894,-500.0,0.00013698,2]
[333087304,1721855437905,-500.0,0.00013698,2]
[333087306,1721855437914,-500.0,0.00013698,2]
[333087308,1721855437924,-500.0,0.00013698,2]
[333087309,1721855437935,-500.0,0.00013698,2]
[333087311,1721855437946,-500.0,0.00013698,2]
[333087313,1721855437958,-500.0,0.00013698,2]
[333087315,1721855437970,-500.0,0.00013698,2]
[333087317,1721855437979,-500.0,0.00013698,2]
[333087318,1721855437988,-500.0,0.00013698,2]
[333087319,1721855437999,-500.0,0.00013698,2]
[333087320,1721855438009,-608.13396375,0.00013698,2]
[333087321,1721855438019,-12109.36413376,0.00013698,2]
[333087322,1721855438028,-500.0,0.00013698,2]
[333087323,1721855438038,-500.0,0.00013698,2]
[333087324,1721855438054,-567.29295055,0.00013698,2]
[333087325,1721855438064,-500.0,0.00013698,2]
[333087326,1721855438075,-500.0,0.00013698,2]
[333087327,1721855438086,-500.0,0.00013698,2]
[333087328,1721855438095,-500.0,0.00013698,2]
[333087329,1721855438105,-500.0,0.00013698,2]
[333087330,1721855438116,-500.0,0.00013698,2]
[333087331,1721855438126,-500.0,0.00013698,2]
[333087332,1721855438135,-500.0,0.00013698,2]
[333087333,1721855438145,-510.73957969,0.00013698,2]
[333087334,1721855438154,-500.0,0.00013698,2]
[333087335,1721855438170,-500.0,0.00013698,2]
[333087336,1721855438180,-500.0,0.00013698,2]
[333087337,1721855438190,-500.0,0.00013698,2]
[333087338,1721855438200,-500.0,0.00013698,2]
[333087339,1721855438210,-500.0,0.00013698,2]
[333087340,1721855438220,-500.0,0.00013698,2]
[333087341,1721855438230,-500.0,0.00013698,2]
[333087342,1721855438241,-501.22068787,0.00013698,2]
[333087343,1721855438251,-178.99459703,0.00013698,2]
[333087344,1721855438262,-500.0,0.00013698,2]
[333087345,1721855438274,-500.0,0.00013698,2]
[333087346,1721855438284,-247.20075316,0.00013698,2]
[333087347,1721855438298,-500.0,0.00013698,2]
[333087348,1721855438307,-508.72670725,0.00013698,2]
[333087349,1721855438317,-171.17220993,0.00013698,2]
[333087350,1721855438327,-500.0,0.00013698,2]
[333087351,1721855438338,-500.0,0.00013698,2]
[333087352,1721855438349,-500.0,0.00013698,2]
[333087353,1721855438359,-502.71235514,0.00013698,2]
[333087354,1721855438370,-500.0,0.00013698,2]
[333087355,1721855438380,-500.0,0.00013698,2]
[333087356,1721855438390,-500.0,0.00013698,2]
[333087357,1721855438402,-500.0,0.00013698,2]
[333087358,1721855438414,-500.0,0.00013698,2]
[333087359,1721855438426,-500.0,0.00013698,2]
[333087360,1721855438438,-499.99813913,0.00013698,2]
[333087361,1721855438451,-500.0,0.00013698,2]
[333087362,1721855438460,-1355.94,0.00013698,2]
[333087363,1721855438472,-500.0,0.00013698,2]
[333087364,1721855438482,-500.0,0.00013698,2]
[333087365,1721855438493,-500.0,0.00013698,2]
[333087366,1721855438502,-500.0,0.00013698,2]
[333087367,1721855438513,-500.0,0.00013698,2]
[333087368,1721855438525,-500.0,0.00013698,2]
[333087369,1721855438535,-500.0,0.00013698,2]
[333087370,1721855438547,-540.93,0.00013698,2]
[333087371,1721855438557,-500.0,0.00013698,2]
[333087372,1721855438566,-571.49,0.00013698,2]
[333087373,1721855438575,-1735.36,0.00013698,2]
[333087374,1721855438584,-500.0,0.00013698,2]
[333087375,1721855438593,-1181.26,0.00013698,2]
[333087376,1721855438603,-573.53,0.00013698,2]
[333087377,1721855438612,-500.0,0.00013698,2]
[333087378,1721855438622,-500.0,0.00013698,2]
[333087379,1721855438631,-503.00451241,0.00013698,2]
[333087380,1721855438641,-500.0,0.00013698,2]
[333087381,1721855438650,-500.0,0.00013698,2]
[333087382,1721855438659,-500.0,0.00013698,2]
[333087383,1721855438668,-2431.4,0.00013698,2]
[333087384,1721855438678,-500.0,0.00013698,2]
[333087385,1721855438687,-425.98261447,0.00013698,2]
[333087386,1721855438697,-500.0,0.00013698,2]
[333087387,1721855438706,-500.0,0.00013698,2]
[333087388,1721855438716,-500.0,0.00013698,2]
[333087389,1721855438725,-500.0,0.00013698,2]
[333087390,1721855438735,-624.91,0.00013698,2]
[333087391,1721855438744,-500.0,0.00013698,2]
[333087392,1721855438754,-500.0,0.00013698,2]
[333087393,1721855438764,-500.0,0.00013698,2]
[333087394,1721855438774,-3310.14,0.00013698,2]
[333087395,1721855438784,-500.0,0.00013698,2]
[333087396,1721855438794,-500.0,0.00013698,2]
[333087397,1721855438805,-500.0,0.00013698,2]
[333087398,1721855438815,-500.0,0.00013698,2]
[333087399,1721855438825,-500.0,0.00013698,2]
[333087400,1721855438835,-500.0,0.00013698,2]
[333087401,1721855438845,-717.46,0.00013698,2]
[333087402,1721855438854,-500.0,0.00013698,2]
[333087403,1721855438863,-509.82,0.00013698,2]
[333087404,1721855438873,-500.0,0.00013698,2]
[333087405,1721855438882,-2006.8,0.00013698,2]
[333087406,1721855438891,-500.0,0.00013698,2]
[333087407,1721855438902,-500.0,0.00013698,2]
[333087408,1721855438911,-1264.15,0.00013698,2]
[333087409,1721855438921,-500.0,0.00013698,2]
[333087410,1721855438931,-500.0,0.00013698,2]
[333087411,1721855438941,-500.0,0.00013698,2]
[333087412,1721855438950,-500.0,0.00013698,2]
[333087413,1721855438961,-2098.74,0.00013698,2]
[333087414,1721855438975,-1449.47,0.00013698,2]
[333087415,1721855438985,-302.76904216,0.00013698,2]
[333087416,1721855438994,-500.0,0.00013698,2]
[333087417,1721855439007,-500.0,0.00013698,2]
[333087418,1721855439016,-1174.72,0.00013698,2]
[333087419,1721855439026,-500.0,0.00013698,2]
[333087420,1721855439036,-500.0,0.00013698,2]
[333087421,1721855439049,-500.0,0.00013698,2]
[333087422,1721855439059,-500.0,0.00013698,2]
[333087423,1721855439068,-500.0,0.00013698,2]
[333087424,1721855439081,-500.0,0.00013698,2]
[333087425,1721855439091,-500.0,0.00013698,2]
[333087426,1721855439100,-500.0,0.00013698,2]
[333087427,1721855439111,-793.34,0.00013698,2]
[333087428,1721855439125,-792.2,0.00013698,2]
[333087429,1721855439134,-500.0,0.00013698,2]
[333087430,1721855439144,-537.99,0.00013698,2]
[333087431,1721855439153,-2063.06,0.00013698,2]
[333087432,1721855439162,-500.0,0.00013698,2]
[333087433,1721855439172,-500.0,0.00013698,2]
[333087434,1721855439182,-500.0,0.00013698,2]
[333087435,1721855439192,-1206.52,0.00013698,2]
[333087436,1721855439202,-500.0,0.00013698,2]
[333087437,1721855439212,-1707.77,0.00013698,2]
[333087438,1721855439221,-500.0,0.00013698,2]
[333087439,1721855439230,-530.50680164,0.00013698,2]
[333087440,1721855439241,-745.28,0.00013698,2]
[333087441,1721855439250,-500.0,0.00013698,2]
[333087442,1721855439259,-500.0,0.00013698,2]
[333087443,1721855439269,-853.77,0.00013698,2]
[333087445,1721855439279,-933.02,0.00013698,2]
[333087446,1721855439288,-1712.83,0.00013698,2]
[333087448,1721855439298,-1759.29,0.00013698,2]
[333087449,1721855439307,-500.0,0.00013698,2]
[333087450,1721855439317,-500.0,0.00013698,2]
[333087451,1721855439327,-504.60222625,0.00013698,2]
[333087453,1721855439337,-500.0,0.00013698,2]
[333087454,1721855439346,-735.22,0.00013698,2]
[333087455,1721855439355,-625.09,0.00013698,2]
[333087456,1721855439364,-500.0,0.00013698,2]
[333087457,1721855439374,-500.0,0.00013698,2]
[333087458,1721855439383,-500.0,0.00013698,2]
[333087459,1721855439392,-500.0,0.00013698,2]
[333087460,1721855439402,-783.34,0.00013698,2]
[333087461,1721855439411,-500.0,0.00013698,2]
[333087462,1721855439421,-500.0,0.00013698,2]
[333087463,1721855439430,-500.0,0.00013698,2]
[333087464,1721855439441,-500.0,0.00013698,2]
[333087465,1721855439450,-500.0,0.00013698,2]
[333087467,1721855439461,-500.0,0.00013698,2]
[333087469,1721855439471,-1786.4,0.00013698,2]
[333087470,1721855439482,-500.0,0.00013698,2]
[333087471,1721855439492,-1259.28,0.00013698,2]
[333087472,1721855439502,-500.0,0.00013698,2]
[333087473,1721855439512,-500.0,0.00013698,2]
[333087475,1721855439522,-500.0,0.00013698,2]
[333087477,1721855439533,-500.0,0.00013698,2]
[333087479,1721855439544,-500.0,0.00013698,2]
[333087480,1721855439556,-598.98166969,0.00013698,2]
[333087481,1721855439565,-2134.37,0.00013698,2]
[333087483,1721855439574,-503.9,0.00013698,2]
[333087484,1721855439583,-500.0,0.00013698,2]
[333087485,1721855439592,-1242.26,0.00013698,2]
[333087486,1721855439603,-500.0,0.00013698,2]
[333087487,1721855439615,-500.0,0.00013698,2]
[333087488,1721855439625,-500.0,0.00013698,2]
[333087489,1721855439637,-500.0,0.00013698,2]
[333087490,1721855439647,-500.0,0.00013698,2]
[333087491,1721855439656,-500.0,0.00013698,2]
[333087492,1721855439667,-500.0,0.00013698,2]
[333087493,1721855439678,-500.0,0.00013698,2]
[333087495,1721855439689,-500.0,0.00013698,2]
[333087497,1721855439700,-500.0,0.00013698,2]
[333087498,1721855439711,-393.38,0.00013698,2]
[333087499,1721855439721,-1511.3,0.00013698,2]
[333087500,1721855439730,-2195.84,0.00013698,2]
[333087501,1721855439739,-505.35167581,0.00013698,2]
[333087502,1721855439749,-500.0,0.00013698,2]
[333087503,1721855439760,-500.0,0.00013698,2]
[333087504,1721855439771,-599.13,0.00013698,2]
[333087505,1721855439781,-500.0,0.00013698,2]
[333087506,1721855439792,-500.0,0.00013698,2]
[333087507,1721855439803,-500.0,0.00013698,2]
[333087508,1721855439815,-500.0,0.00013698,2]
[333087509,1721855439826,-500.0,0.00013698,2]
[333087510,1721855439836,-500.0,0.00013698,2]
[333087511,1721855439846,-1137.63,0.00013698,2]
[333087512,1721855439855,-502.31498446,0.00013698,2]
[333087513,1721855439865,-500.0,0.00013698,2]
[333087514,1721855439876,-500.0,0.00013698,2]
[333087515,1721855439887,-500.0,0.00013698,2]
[333087516,1721855439898,-500.57129976,0.00013698,2]
[333087517,1721855439909,-500.0,0.00013698,2]
[333087518,1721855439921,-500.0,0.00013698,2]
[333087519,1721855439931,-1203.44,0.00013698,2]
[333087520,1721855439940,-151.0,0.00013698,2]
[333087521,1721855439949,-500.0,0.00013698,2]
[333087522,1721855439959,-151.0,0.00013698,2]
[333087523,1721855439971,-500.0,0.00013698,2]
[333087524,1721855439981,-8610.75,0.00013698,2]
[333087525,1721855439990,-500.0,0.00013698,2]
[333087526,1721855440000,-500.0,0.00013698,2]
[333087527,1721855440011,-500.0,0.00013698,2]
[333087528,1721855440020,-10376.7,0.00013698,2]
[333087529,1721855440029,-500.0,0.00013698,2]
[333087530,1721855440040,-500.0,0.00013698,2]
[333087531,1721855440050,-4765.25,0.00013698,2]
[333087532,1721855440060,-2324.29,0.00013698,2]
[333087533,1721855440070,-973.23,0.00013698,2]
[333087534,1721855440079,-702.6,0.00013698,2]
[333087535,1721855440089,-1814.82,0.00013698,2]
[333087536,1721855440098,-500.0,0.00013698,2]
[333087537,1721855440108,-151.0,0.00013698,2]
[333087539,1721855440117,-500.0,0.00013698,2]
[333087540,1721855440127,-151.0,0.00013698,2]
[333087542,1721855440137,-500.0,0.00013698,2]
[333087544,1721855440146,-5788.53,0.00013698,2]
[333087546,1721855440155,-5788.53,0.00013698,2]
[333087548,1721855440165,-682.78,0.00013698,2]
[333087549,1721855440174,-5788.53,0.00013698,2]
[333087550,1721855440184,-5788.53,0.00013698,2]
[333087551,1721855440194,-5788.53,0.00013698,2]
[333087552,1721855440203,-5788.53,0.00013698,2]